[Event "*** Titled Tuesday Blitz"]
[Site "Chess.com"]
[Date "2021.04.06"]
[Round "6"]
[White "yobdc"]
[Black "Guzman70"]
[Result "0-1"]
[WhiteElo "2506"]
[BlackElo "2358"]
[TimeControl "180+1"]
[EndTime "11:09:36 PDT"]
[Termination "Guzman70 won on time"]

1. e4 {[%clk 0:03:00.9]} 1... c5 {[%clk 0:02:59.6]} 2. Nf3 {[%clk 0:03:00.3]}
2... Nc6 {[%clk 0:02:58.3]} 3. Bb5 {[%clk 0:02:59.8]} 3... g6 {[%clk 0:02:58.2]}
4. O-O {[%clk 0:02:59.3]} 4... Bg7 {[%clk 0:02:56.7]} 5. Re1 {[%clk 0:02:59.2]}
5... Nf6 {[%clk 0:02:56]} 6. c3 {[%clk 0:02:59.4]} 6... O-O {[%clk 0:02:53.7]}
7. d4 {[%clk 0:02:58.8]} 7... cxd4 {[%clk 0:02:54.2]} 8. cxd4 {[%clk 0:02:59]}
8... d5 {[%clk 0:02:54.1]} 9. e5 {[%clk 0:02:56]} 9... Ne4 {[%clk 0:02:54.1]}
10. Nbd2 {[%clk 0:02:51.6]} 10... Bf5 {[%clk 0:02:40.6]} 11. h3 {[%clk
0:02:44.1]} 11... Rc8 {[%clk 0:02:38.5]} 12. Nxe4 {[%clk 0:01:52]} 12... Bxe4
{[%clk 0:02:07.8]} 13. Be3 {[%clk 0:01:36.8]} 13... Qb6 {[%clk 0:02:03.6]} 14.
Bxc6 {[%clk 0:01:33.9]} 14... Rxc6 {[%clk 0:02:02.1]} 15. b3 {[%clk 0:01:17.1]}
15... Rfc8 {[%clk 0:01:57.5]} 16. Ng5 {[%clk 0:01:13]} 16... Bf5 {[%clk
0:01:53.7]} 17. g4 {[%clk 0:01:10.3]} 17... Bc2 {[%clk 0:01:53]} 18. Qf3 {[%clk
0:01:09.9]} 18... f6 {[%clk 0:01:30]} 19. exf6 {[%clk 0:01:02.3]} 19... Bxf6
{[%clk 0:01:22.5]} 20. Qxd5+ {[%clk 0:00:59.1]} 20... e6 {[%clk 0:01:19.7]} 21.
Qf3 {[%clk 0:00:48.1]} 21... Bxg5 {[%clk 0:01:15.8]} 22. Bxg5 {[%clk 0:00:49]}
22... Qxd4 {[%clk 0:01:10.6]} 23. Bf6 {[%clk 0:00:45]} 23... Qd5 {[%clk
0:01:05.5]} 24. Qf4 {[%clk 0:00:37.6]} 24... e5 {[%clk 0:01:03.9]} 25. Rxe5
{[%clk 0:00:32]} 25... Qf7 {[%clk 0:00:54]} 26. g5 {[%clk 0:00:31.5]} 26... Re6
{[%clk 0:00:51]} 27. Rae1 {[%clk 0:00:21.4]} 27... Bf5 {[%clk 0:00:42.9]} 28.
Kh2 {[%clk 0:00:17.5]} 28... Rce8 {[%clk 0:00:40]} 29. Rxe6 {[%clk 0:00:15.5]}
29... Bxe6 {[%clk 0:00:40.4]} 30. Rc1 {[%clk 0:00:12.2]} 30... Rc8 {[%clk
0:00:29.7]} 31. Re1 {[%clk 0:00:11.9]} 31... Re8 {[%clk 0:00:26.9]} 32. Re3
{[%clk 0:00:12.1]} 32... Bd5 {[%clk 0:00:25.2]} 33. Rc3 {[%clk 0:00:11.9]} 33...
Bc6 {[%clk 0:00:25]} 34. a4 {[%clk 0:00:09.2]} 34... Qd5 {[%clk 0:00:24.5]} 35.
f3 {[%clk 0:00:07.4]} 35... Re2+ {[%clk 0:00:22.2]} 36. Kg3 {[%clk 0:00:07.7]}
36... Re8 {[%clk 0:00:20]} 37. Re3 {[%clk 0:00:06.1]} 37... Rf8 {[%clk
0:00:17.6]} 38. h4 {[%clk 0:00:06.1]} 38... Qd1 {[%clk 0:00:16.4]} 39. Qc7
{[%clk 0:00:05.2]} 39... Qg1+ {[%clk 0:00:15.6]} 40. Kh3 {[%clk 0:00:03.1]}
40... Qh1+ {[%clk 0:00:13.7]} 41. Kg3 {[%clk 0:00:03.4]} 41... Qg1+ {[%clk
0:00:12.9]} 42. Kh3 {[%clk 0:00:03.9]} 42... Qh1+ {[%clk 0:00:08.8]} 43. Qh2
{[%clk 0:00:04.5]} 43... Bd7+ {[%clk 0:00:07.4]} 44. Kg3 {[%clk 0:00:04.2]}
44... Qxh2+ {[%clk 0:00:06.4]} 45. Kxh2 {[%clk 0:00:04.4]} 45... Re8 {[%clk
0:00:07.2]} 46. Rd3 {[%clk 0:00:04.3]} 46... Bf5 {[%clk 0:00:06.6]} 47. Rc3
{[%clk 0:00:03.6]} 47... Bd7 {[%clk 0:00:05.1]} 48. Rc7 {[%clk 0:00:03.4]} 48...
Be6 {[%clk 0:00:04]} 49. Rg7+ {[%clk 0:00:03.5]} 49... Kf8 {[%clk 0:00:04.4]}
50. Rxh7 {[%clk 0:00:03.9]} 50... Bxb3 {[%clk 0:00:04.4]} 51. Rxb7 {[%clk
0:00:03.7]} 51... Bxa4 {[%clk 0:00:04]} 52. Rxa7 {[%clk 0:00:04]} 52... Bc6
{[%clk 0:00:04.6]} 53. Kg3 {[%clk 0:00:04.3]} 53... Re3 {[%clk 0:00:03.7]} 54.
Ra8+ {[%clk 0:00:02.3]} 54... Bxa8 {[%clk 0:00:02.7]} 55. Kf4 {[%clk 0:00:01.4]}
55... Rxf3+ {[%clk 0:00:03.6]} 56. Ke5 {[%clk 0:00:01.8]} 56... Rf5+ {[%clk
0:00:04.4]} 57. Ke6 {[%clk 0:00:02.1]} 57... Kg8 {[%clk 0:00:04.4]} 58. h5
{[%clk 0:00:02.6]} 58... Bd5+ {[%clk 0:00:04.8]} 59. Kd6 {[%clk 0:00:01.3]}
59... gxh5 {[%clk 0:00:05.7]} 60. Be5 {[%clk 0:00:01.2]} 60... Rxe5 {[%clk
0:00:05.7]} 61. Kxe5 {[%clk 0:00:01.5]} 61... Bf3 {[%clk 0:00:05.8]} 62. Kf4
{[%clk 0:00:01.8]} 62... Bg4 {[%clk 0:00:06.7]} 63. Kg3 {[%clk 0:00:01.4]} 63...
Kg7 {[%clk 0:00:07.6]} 64. Kh4 {[%clk 0:00:02.1]} 64... Kg6 {[%clk 0:00:08.5]}
65. Kg3 {[%clk 0:00:02.9]} 65... Kxg5 {[%clk 0:00:09]} 66. Kh2 {[%clk 0:00:03]}
66... h4 {[%clk 0:00:09.9]} 67. Kg1 {[%clk 0:00:03.8]} 67... Bf5 {[%clk
0:00:10.3]} 68. Kh1 {[%clk 0:00:04.7]} 68... Kg4 {[%clk 0:00:11.2]} 69. Kh2
{[%clk 0:00:05.5]} 69... h3 {[%clk 0:00:11.8]} 70. Kg1 {[%clk 0:00:06.4]} 70...
Be4 {[%clk 0:00:12.1]} 71. Kh2 {[%clk 0:00:05.9]} 71... Kh4 {[%clk 0:00:13]} 72.
Kg1 {[%clk 0:00:06.5]} 72... Kg3 {[%clk 0:00:13.7]} 73. Kf1 {[%clk 0:00:06.8]}
73... h2 {[%clk 0:00:14.6]} 0-1

[Event "*** Titled Tuesday Blitz"]
[Site "Chess.com"]
[Date "2021.04.06"]
[Round "6"]
[White "DaroZin"]
[Black "Bulldog167"]
[Result "0-1"]
[WhiteElo "2589"]
[BlackElo "2793"]
[TimeControl "180+1"]
[EndTime "11:09:37 PDT"]
[Termination "Bulldog167 won by resignation"]

1. e4 {[%clk 0:03:00.9]} 1... e5 {[%clk 0:02:57.6]} 2. Nf3 {[%clk 0:03:00.6]}
2... Nc6 {[%clk 0:02:57.8]} 3. Bb5 {[%clk 0:03:00.4]} 3... a6 {[%clk 0:02:54.4]}
4. Ba4 {[%clk 0:03:00.3]} 4... Nf6 {[%clk 0:02:53.9]} 5. Qe2 {[%clk 0:02:59.5]}
5... Be7 {[%clk 0:02:51.6]} 6. O-O {[%clk 0:02:57.9]} 6... O-O {[%clk
0:02:46.8]} 7. Bxc6 {[%clk 0:02:52.8]} 7... dxc6 {[%clk 0:02:46.9]} 8. Nxe5
{[%clk 0:02:53.4]} 8... Qd4 {[%clk 0:02:46.4]} 9. Nf3 {[%clk 0:02:51]} 9... Qb6
{[%clk 0:02:29.2]} 10. Nc3 {[%clk 0:02:45.6]} 10... Re8 {[%clk 0:02:16.8]} 11.
d3 {[%clk 0:02:44.9]} 11... Bg4 {[%clk 0:02:09.1]} 12. h3 {[%clk 0:02:45]} 12...
Bh5 {[%clk 0:02:08]} 13. Rb1 {[%clk 0:02:39.8]} 13... c5 {[%clk 0:02:02.9]} 14.
Bf4 {[%clk 0:02:24.9]} 14... Bd6 {[%clk 0:01:43.4]} 15. Bg5 {[%clk 0:01:53.2]}
15... Be5 {[%clk 0:01:40.7]} 16. Qd2 {[%clk 0:01:40.8]} 16... Bxf3 {[%clk
0:01:39.1]} 17. gxf3 {[%clk 0:01:41.7]} 17... h6 {[%clk 0:01:36.8]} 18. Bh4
{[%clk 0:01:20.8]} 18... Nh5 {[%clk 0:01:36.7]} 19. Ne2 {[%clk 0:01:17]} 19...
Qd6 {[%clk 0:01:26.4]} 20. Kh1 {[%clk 0:01:06.4]} 20... Nf4 {[%clk 0:01:05.8]}
21. Nxf4 {[%clk 0:01:06]} 21... Bxf4 {[%clk 0:01:06.7]} 22. Qe2 {[%clk
0:00:59.5]} 22... Re5 {[%clk 0:01:06.6]} 23. Rg1 {[%clk 0:00:57.5]} 23... Rh5
{[%clk 0:01:05.9]} 24. Rg4 {[%clk 0:00:56.3]} 24... g5 {[%clk 0:00:54.1]} 25.
Rbg1 {[%clk 0:00:56.3]} 25... Kh7 {[%clk 0:00:48.8]} 26. Bg3 {[%clk 0:00:56.3]}
26... Bxg3 {[%clk 0:00:33.3]} 27. R4xg3 {[%clk 0:00:54]} 27... Re8 {[%clk
0:00:33]} 28. Qd2 {[%clk 0:00:44.9]} 28... f5 {[%clk 0:00:32.4]} 29. Kg2 {[%clk
0:00:41.3]} 29... Rh4 {[%clk 0:00:28.7]} 30. Qc3 {[%clk 0:00:40.1]} 30... Rf4
{[%clk 0:00:27.7]} 31. Re1 {[%clk 0:00:37.4]} 31... Rf8 {[%clk 0:00:24.8]} 32.
Qb3 {[%clk 0:00:27.9]} 32... Qc6 {[%clk 0:00:19.3]} 33. Qc3 {[%clk 0:00:26.1]}
33... fxe4 {[%clk 0:00:19.2]} 34. dxe4 {[%clk 0:00:25.5]} 34... b6 {[%clk
0:00:16.9]} 35. Rd1 {[%clk 0:00:25.6]} 35... R8f7 {[%clk 0:00:15.6]} 36. Qd3
{[%clk 0:00:25.9]} 36... c4 {[%clk 0:00:14.6]} 37. Qd5 {[%clk 0:00:25.6]} 37...
Qxd5 {[%clk 0:00:12.9]} 38. Rxd5 {[%clk 0:00:26.5]} 38... Kg6 {[%clk 0:00:12.7]}
39. Rd4 {[%clk 0:00:26]} 39... b5 {[%clk 0:00:12.8]} 40. Rd5 {[%clk 0:00:25.2]}
40... Kf6 {[%clk 0:00:10.1]} 41. Rg4 {[%clk 0:00:25.7]} 41... Ke6 {[%clk
0:00:09.9]} 42. Rxf4 {[%clk 0:00:25.8]} 42... Rxf4 {[%clk 0:00:10]} 43. Kg3
{[%clk 0:00:25.7]} 43... c6 {[%clk 0:00:09]} 44. Rd2 {[%clk 0:00:25.2]} 44...
Rf7 {[%clk 0:00:07.1]} 45. c3 {[%clk 0:00:24.8]} 45... a5 {[%clk 0:00:06.9]} 46.
a3 {[%clk 0:00:23.1]} 46... Rf6 {[%clk 0:00:03.5]} 47. Rd8 {[%clk 0:00:22.9]}
47... Rf7 {[%clk 0:00:02.7]} 48. Kg4 {[%clk 0:00:22.5]} 48... Rf4+ {[%clk
0:00:02]} 49. Kg3 {[%clk 0:00:23.1]} 49... Rf6 {[%clk 0:00:02.4]} 50. Ra8 {[%clk
0:00:23.3]} 50... Kd6 {[%clk 0:00:02.4]} 51. Rxa5 {[%clk 0:00:22.6]} 51... Kc5
{[%clk 0:00:03.3]} 52. Ra8 {[%clk 0:00:22.8]} 52... Rd6 {[%clk 0:00:03.8]} 53.
Rh8 {[%clk 0:00:22.2]} 53... Rd2 {[%clk 0:00:04.2]} 54. Rxh6 {[%clk 0:00:22]}
54... Rxb2 {[%clk 0:00:04.8]} 55. Rg6 {[%clk 0:00:22.1]} 55... Rc2 {[%clk
0:00:05.3]} 56. Rxg5+ {[%clk 0:00:22.5]} 56... Kb6 {[%clk 0:00:04.9]} 57. h4
{[%clk 0:00:23]} 57... Rxc3 {[%clk 0:00:05.5]} 58. h5 {[%clk 0:00:23.6]} 58...
Rd3 {[%clk 0:00:06]} 59. h6 {[%clk 0:00:23.5]} 59... Rd8 {[%clk 0:00:06.5]} 60.
h7 {[%clk 0:00:23.2]} 60... Rh8 {[%clk 0:00:07.1]} 61. Rh5 {[%clk 0:00:23.6]}
61... c3 {[%clk 0:00:07.6]} 62. Rh1 {[%clk 0:00:23.5]} 62... Kc5 {[%clk
0:00:07.4]} 63. Kf4 {[%clk 0:00:23.9]} 63... Kd4 {[%clk 0:00:07.4]} 64. e5
{[%clk 0:00:24]} 64... c2 {[%clk 0:00:07.4]} 65. e6 {[%clk 0:00:24.1]} 65...
Rxh7 {[%clk 0:00:07.5]} 66. Rc1 {[%clk 0:00:23.5]} 66... Kc3 {[%clk 0:00:07.6]}
67. Kf5 {[%clk 0:00:23.4]} 67... Kb2 {[%clk 0:00:08.1]} 68. Re1 {[%clk
0:00:23.4]} 68... Kxa3 {[%clk 0:00:07.3]} 69. Kf6 {[%clk 0:00:23.3]} 69... b4
{[%clk 0:00:06]} 70. e7 {[%clk 0:00:23.6]} 70... Rxe7 {[%clk 0:00:05.2]} 71.
Kxe7 {[%clk 0:00:24.5]} 71... b3 {[%clk 0:00:05.5]} 0-1

[Event "*** Titled Tuesday Blitz"]
[Site "Chess.com"]
[Date "2021.04.06"]
[Round "6"]
[White "NishaOnYoutube"]
[Black "crazy_but_lazy"]
[Result "0-1"]
[WhiteElo "2254"]
[BlackElo "2428"]
[TimeControl "180+1"]
[EndTime "11:09:38 PDT"]
[Termination "crazy_but_lazy won by checkmate"]

1. e4 {[%clk 0:03:00.9]} 1... c5 {[%clk 0:03:00]} 2. c3 {[%clk 0:03:00.2]} 2...
d5 {[%clk 0:02:53.3]} 3. exd5 {[%clk 0:03:00]} 3... Qxd5 {[%clk 0:02:54.2]} 4.
d4 {[%clk 0:03:00.4]} 4... Nf6 {[%clk 0:02:53.9]} 5. Nf3 {[%clk 0:02:58.3]} 5...
Bg4 {[%clk 0:02:53.8]} 6. Be2 {[%clk 0:02:50.5]} 6... cxd4 {[%clk 0:02:50.4]} 7.
Qxd4 {[%clk 0:02:45.5]} 7... Bxf3 {[%clk 0:02:36.1]} 8. Bxf3 {[%clk 0:02:41.3]}
8... Qxd4 {[%clk 0:02:36.5]} 9. cxd4 {[%clk 0:02:41.9]} 9... Nc6 {[%clk
0:02:37.1]} 10. Be3 {[%clk 0:02:29.9]} 10... e6 {[%clk 0:02:35.7]} 11. Nc3
{[%clk 0:02:28.2]} 11... Bd6 {[%clk 0:02:07]} 12. O-O {[%clk 0:02:04.6]} 12...
O-O {[%clk 0:01:38.5]} 13. Rfd1 {[%clk 0:01:55]} 13... Rfd8 {[%clk 0:01:23]} 14.
Kf1 {[%clk 0:01:43.3]} 14... Ne7 {[%clk 0:01:04.1]} 15. Rac1 {[%clk 0:01:30.8]}
15... Ned5 {[%clk 0:00:53.3]} 16. g3 {[%clk 0:01:24.8]} 16... a6 {[%clk
0:00:45.4]} 17. Ke2 {[%clk 0:01:24.1]} 17... Kf8 {[%clk 0:00:45.3]} 18. Ne4
{[%clk 0:01:12.4]} 18... Nxe4 {[%clk 0:00:30.6]} 19. Bxe4 {[%clk 0:01:13.3]}
19... h6 {[%clk 0:00:28.2]} 20. a3 {[%clk 0:01:11.9]} 20... Ke7 {[%clk
0:00:25.8]} 21. Rc2 {[%clk 0:01:05.4]} 21... f5 {[%clk 0:00:21]} 22. Bxd5 {[%clk
0:00:53.4]} 22... exd5 {[%clk 0:00:21.9]} 23. f4 {[%clk 0:00:53.9]} 23... Kd7
{[%clk 0:00:20.7]} 24. Bd2 {[%clk 0:00:48.3]} 24... Re8+ {[%clk 0:00:20.9]} 25.
Kd3 {[%clk 0:00:47.8]} 25... Re4 {[%clk 0:00:21.6]} 26. Re1 {[%clk 0:00:39.1]}
26... Rae8 {[%clk 0:00:22]} 27. Rcc1 {[%clk 0:00:38]} 27... Ke6 {[%clk
0:00:19.2]} 28. Bc3 {[%clk 0:00:33.1]} 28... g5 {[%clk 0:00:18.2]} 29. fxg5
{[%clk 0:00:31.3]} 29... hxg5 {[%clk 0:00:19.1]} 30. Bd2 {[%clk 0:00:29.8]}
30... Kf6 {[%clk 0:00:11.2]} 31. b4 {[%clk 0:00:26.1]} 31... Rh8 {[%clk
0:00:10.8]} 32. Rh1 {[%clk 0:00:22.8]} 32... f4 {[%clk 0:00:08.3]} 33. Rcf1
{[%clk 0:00:20.1]} 33... Kf5 {[%clk 0:00:07.6]} 34. gxf4 {[%clk 0:00:19.6]}
34... Rh3+ {[%clk 0:00:07.6]} 35. Kc2 {[%clk 0:00:17.7]} 35... gxf4 {[%clk
0:00:08.2]} 36. Bc3 {[%clk 0:00:15.7]} 36... Re2+ {[%clk 0:00:08.4]} 37. Kb3
{[%clk 0:00:14.3]} 37... Ree3 {[%clk 0:00:08.2]} 38. Rc1 {[%clk 0:00:14.4]}
38... Ke4 {[%clk 0:00:08.1]} 39. Kb2 {[%clk 0:00:13.8]} 39... b5 {[%clk
0:00:08.1]} 40. Bd2 {[%clk 0:00:13.1]} 40... Re2 {[%clk 0:00:07.8]} 41. Rce1
{[%clk 0:00:13.1]} 41... f3 {[%clk 0:00:06]} 42. Kc1 {[%clk 0:00:08.9]} 42...
Kd3 {[%clk 0:00:05.8]} 43. Ref1 {[%clk 0:00:07.2]} 43... Rxd2 {[%clk 0:00:05]}
44. Rd1 {[%clk 0:00:06.3]} 44... Bf4 {[%clk 0:00:04.4]} 45. Rxd2+ {[%clk
0:00:06]} 45... Bxd2+ {[%clk 0:00:05.3]} 46. Kd1 {[%clk 0:00:06.9]} 46... Be3
{[%clk 0:00:05.6]} 47. Ke1 {[%clk 0:00:06.6]} 47... f2+ {[%clk 0:00:06]} 48. Kf1
{[%clk 0:00:06.9]} 48... Bxd4 {[%clk 0:00:06.6]} 49. Kg2 {[%clk 0:00:06.5]}
49... Rh8 {[%clk 0:00:07.3]} 50. h4 {[%clk 0:00:06.6]} 50... Bb2 {[%clk
0:00:06]} 51. Kf1 {[%clk 0:00:05.9]} 51... Bxa3 {[%clk 0:00:06.2]} 52. h5 {[%clk
0:00:06]} 52... Bxb4 {[%clk 0:00:06.2]} 53. h6 {[%clk 0:00:05.9]} 53... Bd2
{[%clk 0:00:06.2]} 54. Rh3+ {[%clk 0:00:05.2]} 54... Be3 {[%clk 0:00:06.4]} 55.
h7 {[%clk 0:00:06.1]} 55... d4 {[%clk 0:00:06.9]} 56. Rh4 {[%clk 0:00:04.6]}
56... a5 {[%clk 0:00:06.7]} 57. Rh5 {[%clk 0:00:04.6]} 57... a4 {[%clk
0:00:07.2]} 58. Rxb5 {[%clk 0:00:04.6]} 58... Rxh7 {[%clk 0:00:07.7]} 59. Ra5
{[%clk 0:00:04.7]} 59... Rh1+ {[%clk 0:00:08.3]} 60. Kg2 {[%clk 0:00:04.4]}
60... f1=Q+ {[%clk 0:00:09.2]} 61. Kg3 {[%clk 0:00:05.1]} 61... Qf4+ {[%clk
0:00:09.1]} 62. Kg2 {[%clk 0:00:05.1]} 62... Qh2+ {[%clk 0:00:10]} 63. Kf3
{[%clk 0:00:05.2]} 63... Rf1+ {[%clk 0:00:10.4]} 64. Kg4 {[%clk 0:00:05.3]}
64... Qf4+ {[%clk 0:00:11]} 65. Kh5 {[%clk 0:00:05.3]} 65... Qh6+ {[%clk
0:00:11.3]} 66. Kg4 {[%clk 0:00:05.1]} 66... Rf4+ {[%clk 0:00:12.2]} 67. Kg3
{[%clk 0:00:05.2]} 67... Qh4+ {[%clk 0:00:13.1]} 68. Kg2 {[%clk 0:00:05.3]}
68... Rf2+ {[%clk 0:00:14]} 69. Kg1 {[%clk 0:00:05.2]} 69... Qh2# {[%clk
0:00:14.9]} 0-1

[Event "*** Titled Tuesday Blitz"]
[Site "Chess.com"]
[Date "2021.04.06"]
[Round "6"]
[White "gahryman"]
[Black "muchojogo"]
[Result "1/2-1/2"]
[WhiteElo "2725"]
[BlackElo "2452"]
[TimeControl "180+1"]
[EndTime "11:09:39 PDT"]
[Termination "Game drawn - insufficient material"]

1. e4 {[%clk 0:03:00.9]} 1... c5 {[%clk 0:02:57.5]} 2. Nf3 {[%clk 0:03:00.9]}
2... d6 {[%clk 0:02:54.7]} 3. d4 {[%clk 0:03:01.1]} 3... cxd4 {[%clk 0:02:55.6]}
4. Nxd4 {[%clk 0:03:01.9]} 4... Nf6 {[%clk 0:02:56.3]} 5. Nc3 {[%clk 0:03:02.5]}
5... g6 {[%clk 0:02:57.2]} 6. Be2 {[%clk 0:03:01.5]} 6... Bg7 {[%clk 0:02:57.6]}
7. O-O {[%clk 0:03:02.1]} 7... O-O {[%clk 0:02:58.3]} 8. Re1 {[%clk 0:03:02.4]}
8... Nc6 {[%clk 0:02:58.7]} 9. Nb3 {[%clk 0:03:03]} 9... Be6 {[%clk 0:02:57.9]}
10. Bg5 {[%clk 0:03:01.6]} 10... Na5 {[%clk 0:02:56.9]} 11. e5 {[%clk
0:03:00.4]} 11... Nxb3 {[%clk 0:02:50.5]} 12. axb3 {[%clk 0:02:38.5]} 12... dxe5
{[%clk 0:02:49.9]} 13. Qxd8 {[%clk 0:02:38.1]} 13... Rfxd8 {[%clk 0:02:50.8]}
14. Bf3 {[%clk 0:02:38.9]} 14... e4 {[%clk 0:02:44.2]} 15. Nxe4 {[%clk 0:02:35]}
15... Nxe4 {[%clk 0:02:45.1]} 16. Bxe4 {[%clk 0:02:35.4]} 16... Bxb2 {[%clk
0:02:45.7]} 17. Rab1 {[%clk 0:02:14.1]} 17... Bc3 {[%clk 0:02:43.8]} 18. Red1
{[%clk 0:02:10.3]} 18... f6 {[%clk 0:02:33.9]} 19. Bh6 {[%clk 0:02:05]} 19...
Kf7 {[%clk 0:01:47.3]} 20. h4 {[%clk 0:02:02.3]} 20... Rxd1+ {[%clk 0:01:36.2]}
21. Rxd1 {[%clk 0:02:01.6]} 21... Rb8 {[%clk 0:01:34]} 22. Bf4 {[%clk
0:01:37.3]} 22... Be5 {[%clk 0:01:33.8]} 23. Bxe5 {[%clk 0:01:30.9]} 23... fxe5
{[%clk 0:01:34.7]} 24. Ra1 {[%clk 0:01:27.9]} 24... a6 {[%clk 0:01:26.8]} 25.
Ra5 {[%clk 0:01:28]} 25... Kf6 {[%clk 0:01:26.8]} 26. f3 {[%clk 0:01:26]} 26...
h5 {[%clk 0:01:21.2]} 27. Rc5 {[%clk 0:01:21.8]} 27... Rc8 {[%clk 0:01:19.1]}
28. Ra5 {[%clk 0:01:10.2]} 28... Rc7 {[%clk 0:01:18.3]} 29. c4 {[%clk 0:01:10]}
29... Bf5 {[%clk 0:01:13.5]} 30. Kf2 {[%clk 0:01:06.1]} 30... Bxe4 {[%clk
0:01:07.6]} 31. fxe4 {[%clk 0:01:07]} 31... Ke6 {[%clk 0:01:08.2]} 32. Ke3
{[%clk 0:01:06.9]} 32... Rc8 {[%clk 0:01:06.7]} 33. Ra4 {[%clk 0:01:01]} 33...
Rf8 {[%clk 0:01:05.4]} 34. Rb4 {[%clk 0:01:00.6]} 34... b5 {[%clk 0:00:32.5]}
35. cxb5 {[%clk 0:00:52.1]} 35... Rb8 {[%clk 0:00:31]} 36. b6 {[%clk 0:00:52.3]}
36... Kd6 {[%clk 0:00:31.2]} 37. b7 {[%clk 0:00:14.6]} 37... Kc6 {[%clk
0:00:31.2]} 38. Ra4 {[%clk 0:00:13.7]} 38... Kb5 {[%clk 0:00:21.8]} 39. Ra1
{[%clk 0:00:08.3]} 39... Rxb7 {[%clk 0:00:21.4]} 40. Rd1 {[%clk 0:00:08]} 40...
Kb4 {[%clk 0:00:20.2]} 41. Rd5 {[%clk 0:00:08.1]} 41... Kxb3 {[%clk 0:00:18.4]}
42. Rxe5 {[%clk 0:00:08.6]} 42... Kb4 {[%clk 0:00:17.1]} 43. Rg5 {[%clk
0:00:08.8]} 43... a5 {[%clk 0:00:17.2]} 44. Rxg6 {[%clk 0:00:09.1]} 44... a4
{[%clk 0:00:17.9]} 45. Rg8 {[%clk 0:00:08]} 45... a3 {[%clk 0:00:17.5]} 46. Ra8
{[%clk 0:00:08.1]} 46... Kb3 {[%clk 0:00:18]} 47. g4 {[%clk 0:00:07.5]} 47...
hxg4 {[%clk 0:00:17.8]} 48. Kf4 {[%clk 0:00:08.2]} 48... Rb4 {[%clk 0:00:15.9]}
49. h5 {[%clk 0:00:08.4]} 49... Ra4 {[%clk 0:00:13.9]} 50. Rb8+ {[%clk
0:00:06.6]} 50... Kc2 {[%clk 0:00:13.9]} 51. Rc8+ {[%clk 0:00:06.7]} 51... Kd3
{[%clk 0:00:14.2]} 52. Rc1 {[%clk 0:00:05.9]} 52... Rxe4+ {[%clk 0:00:13.5]} 53.
Kg5 {[%clk 0:00:06.4]} 53... g3 {[%clk 0:00:12]} 54. Rg1 {[%clk 0:00:05.7]}
54... Re3 {[%clk 0:00:06.9]} 55. h6 {[%clk 0:00:05.6]} 55... g2 {[%clk
0:00:04.6]} 56. Kg4 {[%clk 0:00:04.2]} 56... Re6 {[%clk 0:00:02.9]} 57. Kg5
{[%clk 0:00:04.4]} 57... Rxh6 {[%clk 0:00:01.2]} 58. Kxh6 {[%clk 0:00:04.1]}
58... e5 {[%clk 0:00:02.1]} 59. Rxg2 {[%clk 0:00:03.1]} 59... e4 {[%clk
0:00:02.3]} 60. Ra2 {[%clk 0:00:03.6]} 60... e3 {[%clk 0:00:02.6]} 61. Rxa3+
{[%clk 0:00:04.5]} 61... Kd2 {[%clk 0:00:03.1]} 62. Ra2+ {[%clk 0:00:04.1]}
62... Kd3 {[%clk 0:00:03.3]} 63. Ra3+ {[%clk 0:00:04.4]} 63... Kd2 {[%clk
0:00:03.7]} 64. Ra2+ {[%clk 0:00:04.5]} 64... Kd3 {[%clk 0:00:04.1]} 65. Kg5
{[%clk 0:00:04.7]} 65... e2 {[%clk 0:00:04.2]} 66. Ra1 {[%clk 0:00:05.6]} 66...
Kd2 {[%clk 0:00:04.4]} 67. Ra2+ {[%clk 0:00:06]} 67... Kd1 {[%clk 0:00:04.9]}
68. Rxe2 {[%clk 0:00:06.1]} 68... Kxe2 {[%clk 0:00:05.2]} 1/2-1/2